fUSD/lending_fUSD_20251115
["ID","MTS","AMOUNT","RATE_DAILY","PERIOD"]
[394068645,1763243259175,-599.90541959,0.00041452,120]
[394068646,1763243259228,-500.0,0.00041452,120]
[394068647,1763243259281,-401.05219904,0.00041452,120]
[394068648,1763243259333,-500.0,0.00041452,120]
[394068649,1763243259386,-310.6881064,0.00041452,120]
[394068650,1763243259437,-402.92129721,0.00041452,120]
[394068651,1763243259489,-500.0,0.00041452,120]
[394068652,1763243259540,-500.0,0.00041452,120]
[394068653,1763243259591,-500.0,0.00041452,120]
[394068654,1763243259654,-500.0,0.00041452,120]
[394068655,1763243259712,-500.0,0.00041452,120]
[394068656,1763243259768,-500.0,0.00041452,120]
[394068657,1763243259822,-500.0,0.00041452,120]
[394068658,1763243259880,-260.07095671,0.00041452,120]
[394068659,1763243260086,-400.0,0.00041452,120]
[394068660,1763243260143,-500.0,0.00041452,120]
[394068661,1763243260198,-500.0,0.00041452,120]
[394068662,1763243260250,-207.3441947,0.00041452,120]
[394068663,1763243260299,-447.01755199,0.00041452,120]
[394068664,1763243260348,-216.0,0.00041452,30]
[394068665,1763243260399,-500.0,0.00041452,120]
[394068666,1763243260452,-500.0,0.00041452,120]
[394068667,1763243260504,-202.66493432,0.00041452,120]
[394068668,1763243260552,-216.0,0.00041452,30]
[394068669,1763243260605,-500.0,0.00041452,120]
[394068670,1763243260665,-500.0,0.00041452,120]
[394068671,1763243260720,-500.0,0.00041452,120]
[394068672,1763243260776,-333.50244774,0.00041452,120]
[394068673,1763243260827,-500.0,0.00041452,120]
[394068674,1763243260880,-500.0,0.00041452,120]
[394068675,1763243260933,-637.82857425,0.00041452,120]
[394068676,1763243260981,-403.08195383,0.00041452,120]
[394068677,1763243261027,-185.24271207,0.00041452,120]
[394068678,1763243261075,-401.32754888,0.00041452,120]
[394068679,1763243261121,-500.0,0.00041452,120]
[394068680,1763243261168,-269.4695653,0.00041452,120]
[394068681,1763243261216,-401.1581853,0.00041452,120]
[394068682,1763243261264,-500.0,0.00041452,120]
[394068683,1763243261312,-500.0,0.00041452,120]
[394068684,1763243261363,-500.0,0.00041452,120]
[394068685,1763243261414,-500.0,0.00041452,120]
[394068686,1763243261467,-500.0,0.00041452,120]
[394068687,1763243261515,-505.29930515,0.00041452,120]
[394068688,1763243261562,-624.57506897,0.00041452,120]
[394068689,1763243261610,-266.55791401,0.00041452,120]
[394068690,1763243261664,-500.0,0.00041452,120]
[394068691,1763243261719,-500.0,0.00041452,120]
[394068692,1763243261773,-500.0,0.00041452,120]
[394068693,1763243261826,-638.37222973,0.00041452,120]
[394068694,1763243261878,-500.0,0.00041452,120]
[394068695,1763243261929,-500.0,0.00041452,120]
[394068696,1763243261978,-415.12167709,0.00041452,120]
[394068697,1763243262027,-500.0,0.00041452,120]
[394068698,1763243262080,-500.0,0.00041452,120]
[394068699,1763243262139,-500.0,0.00041452,120]
[394068700,1763243262201,-500.0,0.00041452,120]
[394068701,1763243262258,-500.0,0.00041452,120]
[394068702,1763243262329,-508.65199143,0.00041452,120]
[394068703,1763243262387,-500.0,0.00041452,120]
[394068704,1763243262451,-500.0,0.00041452,120]
[394068705,1763243262506,-500.0,0.00041452,120]
[394068706,1763243262567,-426.36205052,0.00041452,120]
[394068707,1763243262619,-500.0,0.00041452,120]
[394068708,1763243262674,-500.0,0.00041452,120]
[394068709,1763243262730,-500.0,0.00041452,120]
[394068710,1763243262784,-500.0,0.00041452,120]
[394068711,1763243262835,-500.0,0.00041452,120]
[394068712,1763243262885,-250.08158235,0.00041452,120]
[394068713,1763243262936,-495.43484402,0.00041452,120]
[394068714,1763243262987,-500.0,0.00041452,120]
[394068715,1763243263036,-412.42904242,0.00041452,120]
[394068716,1763243263086,-508.08961102,0.00041452,120]
[394068717,1763243263138,-359.00631992,0.00041452,120]
[394068718,1763243263190,-500.0,0.00041452,120]
[394068719,1763243263248,-403.96417757,0.00041452,120]
[394068720,1763243263301,-500.0,0.00041452,120]
[394068721,1763243263353,-409.87157168,0.00041452,120]
[394068722,1763243263408,-500.0,0.00041452,120]
[394068723,1763243263464,-334.99237964,0.00041452,120]
[394068724,1763243263522,-504.48772579,0.00041452,120]
[394068725,1763243263579,-505.48741348,0.00041452,120]
[394068726,1763243263640,-500.0,0.00041452,120]
[394068727,1763243263708,-500.0,0.00041452,120]
[394068728,1763243263772,-500.0,0.00041452,120]
[394068729,1763243263832,-500.0,0.00041452,120]
[394068730,1763243263891,-406.31984167,0.00041452,120]
[394068731,1763243263953,-401.15951778,0.00041452,120]
[394068732,1763243264012,-403.72113485,0.00041452,120]
[394068733,1763243264071,-500.0,0.00041452,120]
[394068734,1763243264130,-500.0,0.00041452,120]
[394068735,1763243264187,-500.0,0.00041452,120]
[394068736,1763243264252,-500.0,0.00041452,120]
[394068737,1763243264310,-500.0,0.00041452,120]
[394068738,1763243264369,-512.82809109,0.00041452,120]
[394068739,1763243264426,-401.90214766,0.00041452,120]
[394068740,1763243264483,-500.0,0.00041452,120]
[394068741,1763243264538,-404.49031214,0.00041452,120]
[394068742,1763243264594,-500.0,0.00041452,120]
[394068743,1763243264657,-209.01018704,0.00041452,120]
[394068744,1763243264716,-549.58738784,0.00041452,120]
[394068745,1763243264776,-401.41520404,0.00041452,120]
[394068746,1763243264836,-487.24668259,0.00041452,120]
[394068747,1763243264894,-500.0,0.00041452,120]
[394068748,1763243264954,-500.0,0.00041452,120]
[394068749,1763243265010,-500.0,0.00041452,120]
[394068750,1763243265063,-646.29757839,0.00041452,120]
[394068751,1763243265116,-500.0,0.00041452,120]
[394068752,1763243265171,-500.0,0.00041452,120]
[394068753,1763243265224,-500.0,0.00041452,120]
[394068754,1763243265275,-460.0,0.00041452,120]
[394068755,1763243265327,-417.65255001,0.00041452,120]
[394068756,1763243265379,-190.75539593,0.00041452,120]
[394068757,1763243265430,-620.31383143,0.00041452,120]
[394068758,1763243265482,-401.81376407,0.00041452,120]
[394068759,1763243265533,-400.0,0.00041452,120]
[394068760,1763243265583,-158.95872629,0.00041452,60]
[394068761,1763243265640,-481.57432021,0.00041452,120]
[394068762,1763243265698,-401.63367039,0.00041452,120]
[394068763,1763243265976,-500.0,0.00041452,120]
[394068764,1763243266031,-500.0,0.00041452,120]
[394068765,1763243266083,-500.0,0.00041452,120]
[394068766,1763243266134,-500.0,0.00041452,120]
[394068767,1763243266185,-372.76283938,0.00041452,120]
[394068768,1763243266239,-500.0,0.00041452,120]
[394068769,1763243266290,-500.0,0.00041452,120]
[394068770,1763243266341,-500.0,0.00041452,120]
[394068771,1763243266392,-421.85157384,0.00041452,120]
[394068772,1763243266441,-401.9855057,0.00041452,120]
[394068773,1763243266491,-500.0,0.00041452,120]
[394068774,1763243266541,-500.0,0.00041452,120]
[394068775,1763243266591,-500.0,0.00041452,120]
[394068776,1763243266647,-500.0,0.00041452,120]
[394068777,1763243266701,-207.75022423,0.00041452,120]
[394068778,1763243266755,-400.0,0.00041452,120]
[394068779,1763243266809,-500.0,0.00041452,120]
[394068780,1763243266863,-516.15097575,0.00041452,120]
[394068781,1763243266914,-186.93347674,0.00041452,120]
[394068782,1763243266965,-400.0,0.00041452,120]
[394068783,1763243267016,-353.10300247,0.00041452,60]
[394068784,1763243267069,-500.0,0.00041452,120]
[394068785,1763243267122,-500.0,0.00041452,120]
[394068786,1763243267176,-500.0,0.00041452,120]
[394068787,1763243267229,-500.0,0.00041452,120]
[394068788,1763243267282,-500.0,0.00041452,120]
[394068789,1763243267335,-500.0,0.00041452,120]
[394068790,1763243267385,-265.71891572,0.00041452,120]
[394068791,1763243267436,-500.0,0.00041452,120]
[394068792,1763243267488,-500.0,0.00041452,120]
[394068793,1763243267540,-500.0,0.00041452,120]
[394068794,1763243267590,-500.0,0.00041452,120]
[394068795,1763243267645,-500.0,0.00041452,120]
[394068796,1763243267701,-500.0,0.00041452,120]
[394068797,1763243267758,-500.0,0.00041452,120]
[394068798,1763243267813,-500.0,0.00041452,120]
[394068799,1763243267867,-649.09139819,0.00041452,120]
[394068800,1763243267921,-500.0,0.00041452,120]
[394068801,1763243267973,-500.0,0.00041452,120]
[394068802,1763243268026,-500.0,0.00041452,120]
[394068803,1763243268078,-593.21961635,0.00041452,120]
[394068804,1763243268131,-501.87674997,0.00041452,120]
[394068805,1763243268183,-500.0,0.00041452,120]
[394068806,1763243268240,-500.0,0.00041452,120]
[394068807,1763243268295,-500.0,0.00041452,120]
[394068808,1763243268351,-500.0,0.00041452,120]
[394068809,1763243268406,-571.36851938,0.00041452,120]
[394068810,1763243268462,-500.0,0.00041452,120]
[394068811,1763243268514,-352.70052665,0.00041452,120]
[394068812,1763243268564,-500.0,0.00041452,120]
[394068813,1763243268623,-500.0,0.00041452,120]
[394068814,1763243268686,-500.0,0.00041452,120]
[394068815,1763243268749,-500.0,0.00041452,120]
[394068816,1763243268813,-500.0,0.00041452,120]
[394068817,1763243268876,-500.0,0.00041452,120]
[394068818,1763243268932,-500.0,0.00041452,120]
[394068819,1763243268989,-184.77587893,0.00041452,120]
[394068820,1763243269042,-500.0,0.00041452,120]
[394068821,1763243269096,-500.0,0.00041452,120]
[394068822,1763243269150,-500.0,0.00041452,120]
[394068823,1763243269204,-500.0,0.00041452,120]
[394068824,1763243269256,-500.0,0.00041452,120]
[394068825,1763243269306,-500.0,0.00041452,120]
[394068826,1763243269358,-500.0,0.00041452,120]
[394068827,1763243269412,-400.0,0.00041452,120]
[394068828,1763243269463,-500.0,0.00041452,120]
[394068829,1763243269514,-500.0,0.00041452,120]
[394068830,1763243269565,-500.0,0.00041452,120]
[394068831,1763243269620,-500.0,0.00041452,120]
[394068832,1763243269676,-418.58331515,0.00041452,120]
[394068833,1763243269733,-317.20819587,0.00041452,120]
[394068834,1763243269787,-500.0,0.00041452,120]
[394068835,1763243269840,-500.0,0.00041452,120]
[394068836,1763243269893,-500.0,0.00041452,120]
[394068837,1763243269947,-559.40791959,0.00041452,120]
[394068838,1763243269997,-287.63832382,0.00041452,120]
[394068839,1763243270047,-1165.92,0.00041452,30]
[394068840,1763243270095,-500.0,0.00041452,120]
[394068841,1763243270145,-1165.92,0.00041452,30]
[394068842,1763243270200,-500.0,0.00041452,120]
[394068843,1763243270250,-1165.92,0.00041452,30]
[394068844,1763243270301,-500.0,0.00041452,120]
[394068845,1763243270351,-1165.92,0.00041452,30]
[394068846,1763243270400,-569.17023397,0.00041452,120]
[394068847,1763243270450,-1165.92,0.00041452,30]
[394068848,1763243270501,-1165.92,0.00041452,30]
[394068849,1763243270552,-1165.92,0.00041452,30]
[394068850,1763243270603,-1165.92,0.00041452,30]
[394068851,1763243270661,-1165.92,0.00041452,30]
[394068852,1763243270720,-1165.92,0.00041452,30]
[394068853,1763243270778,-1165.92,0.00041452,30]
[394068854,1763243270833,-175.0,0.00041452,120]
[394068855,1763243270887,-1165.92,0.00041452,30]
[394068856,1763243270938,-1165.92,0.00041452,30]
[394068857,1763243270988,-1165.92,0.00041452,30]
[394068858,1763243271036,-1165.92,0.00041452,30]
[394068859,1763243271086,-1165.92,0.00041452,30]
[394068860,1763243271135,-1165.92,0.00041452,30]
[394068861,1763243271184,-1165.92,0.00041452,30]
[394068862,1763243271236,-1165.92,0.00041452,30]
[394068863,1763243271288,-1165.92,0.00041452,30]
[394068864,1763243271339,-1165.92,0.00041452,30]
[394068865,1763243271546,-1165.92,0.00041452,30]
[394068866,1763243271601,-1165.92,0.00041452,30]
[394068867,1763243271656,-1166.06565106,0.00041452,30]
[394068868,1763243271711,-500.0,0.00041452,120]
[394068869,1763243271766,-500.0,0.00041452,120]
[394068870,1763243271818,-500.0,0.00041452,120]
[394068871,1763243271869,-500.0,0.00041452,120]
[394068872,1763243271919,-603.77480761,0.00041452,120]
[394068873,1763243271969,-500.0,0.00041452,120]
[394068874,1763243272018,-500.0,0.00041452,120]
[394068875,1763243272066,-500.0,0.00041452,120]
[394068876,1763243272114,-577.11246774,0.00041452,120]
[394068877,1763243272162,-500.0,0.00041452,120]
[394068878,1763243272209,-500.0,0.00041452,120]
[394068879,1763243272256,-500.0,0.00041452,120]
[394068880,1763243272306,-218.42801149,0.00041452,120]
[394068881,1763243272359,-500.0,0.00041452,120]
[394068882,1763243272410,-500.0,0.00041452,120]
[394068883,1763243272458,-500.0,0.00041452,120]
[394068884,1763243272508,-512.36059163,0.00041452,120]
[394068885,1763243272558,-500.0,0.00041452,120]
[394068886,1763243272610,-500.0,0.00041452,120]
[394068887,1763243272663,-500.0,0.00041452,120]
[394068888,1763243272715,-169.56824417,0.00041452,120]
[394068889,1763243272769,-500.0,0.00041452,120]
[394068890,1763243272825,-500.0,0.00041452,120]
[394068891,1763243272877,-500.0,0.00041452,120]
[394068892,1763243272928,-500.0,0.00041452,120]
[394068893,1763243272982,-214.53540482,0.00041452,120]
[394068894,1763243273036,-500.0,0.00041452,120]
[394068895,1763243273092,-500.0,0.00041452,120]
[394068896,1763243273145,-500.0,0.00041452,120]
[394068897,1763243273204,-500.0,0.00041452,120]
[394068898,1763243273259,-500.0,0.00041452,120]
[394068899,1763243273318,-500.0,0.00041452,120]
[394068900,1763243273370,-500.0,0.00041452,120]
[394068901,1763243273423,-406.33097035,0.00041452,120]
[394068902,1763243273475,-500.0,0.00041452,120]
[394068903,1763243273527,-500.0,0.00041452,120]
[394068904,1763243273582,-500.0,0.00041452,120]
[394068905,1763243273637,-500.0,0.00041452,120]
[394068906,1763243273697,-500.0,0.00041452,120]
[394068907,1763243273758,-500.0,0.00041452,120]
[394068908,1763243273820,-500.0,0.00041452,120]
[394068909,1763243273876,-500.0,0.00041452,120]
[394068910,1763243273934,-500.0,0.00041452,120]
[394068911,1763243273990,-194.03428987,0.00041452,120]
[394068912,1763243274047,-753.53,0.00041452,120]
[394068913,1763243274107,-753.53,0.00041452,120]
[394068914,1763243274166,-753.53,0.00041452,120]
[394068915,1763243274220,-753.53,0.00041452,120]
[394068916,1763243274279,-753.53,0.00041452,120]
[394068917,1763243274334,-753.53,0.00041452,120]
[394068918,1763243274388,-753.53,0.00041452,120]
[394068919,1763243274442,-500.0,0.00041452,120]
[394068920,1763243274495,-753.53,0.00041452,120]
[394068921,1763243274548,-500.0,0.00041452,120]
[394068922,1763243274601,-753.53,0.00041452,120]
[394068923,1763243274660,-500.0,0.00041452,120]
[394068924,1763243274723,-500.0,0.00041452,120]
[394068925,1763243274795,-753.53,0.00041452,120]
[394068926,1763243274865,-500.0,0.00041452,120]
[394068927,1763243274930,-500.0,0.00041452,120]
[394068928,1763243274994,-753.53,0.00041452,120]
[394068929,1763243275052,-500.0,0.00041452,120]
[394068930,1763243275107,-421.11467972,0.00041452,120]
[394068931,1763243275161,-753.53,0.00041452,120]
[394068932,1763243275216,-500.0,0.00041452,120]
[394068933,1763243275269,-500.0,0.00041452,120]
[394068934,1763243275326,-753.53,0.00041452,120]
[394068935,1763243275381,-359.26664963,0.00041452,120]
[394068936,1763243275435,-380.81615115,0.00041452,120]
[394068937,1763243275487,-753.53,0.00041452,120]
[394068938,1763243275537,-753.53,0.00041452,120]
[394068939,1763243275588,-753.53,0.00041452,120]
[394068940,1763243275642,-753.53,0.00041452,120]
[394068941,1763243275704,-753.53,0.00041452,120]
[394068942,1763243275760,-753.53,0.00041452,120]
[394068943,1763243275813,-753.53,0.00041452,120]
[394068944,1763243275866,-500.0,0.00041452,120]
[394068945,1763243275923,-753.53,0.00041452,120]
[394068946,1763243275977,-500.0,0.00041452,120]
[394068947,1763243276031,-753.53,0.00041452,120]
[394068948,1763243276083,-500.0,0.00041452,120]
[394068949,1763243276139,-753.53,0.00041452,120]
[394068950,1763243276192,-500.0,0.00041452,120]
[394068951,1763243276248,-753.61082094,0.00041452,120]
[394068952,1763243276295,-475.08701029,0.00041452,120]
[394068953,1763243276339,-490.14487885,0.00041452,120]
[394068954,1763243276385,-500.0,0.00041452,120]
[394068955,1763243276431,-500.0,0.00041452,120]
[394068956,1763243276477,-645.06264156,0.00041452,120]
[394068957,1763243276526,-500.0,0.00041452,120]
[394068958,1763243276572,-500.0,0.00041452,120]
[394068959,1763243276619,-500.0,0.00041452,120]
[394068960,1763243276670,-500.0,0.00041452,120]
[394068961,1763243276724,-500.0,0.00041452,120]
[394068962,1763243276776,-500.0,0.00041452,120]
[394068963,1763243276823,-500.0,0.00041452,120]
[394068964,1763243276873,-156.94263631,0.00041452,120]
[394068965,1763243276920,-168.0074676,0.00041452,120]
[394068966,1763243276969,-500.0,0.00041452,120]
[394068967,1763243277013,-500.0,0.00041452,120]
[394068968,1763243277060,-500.0,0.00041452,120]
[394068969,1763243277315,-359.99420244,0.00041452,120]
[394068970,1763243277367,-198.25213801,0.00041452,120]
[394068971,1763243277415,-500.0,0.00041452,120]
[394068972,1763243277460,-500.0,0.00041452,120]
[394068973,1763243277506,-500.0,0.00041452,120]
[394068974,1763243277551,-500.0,0.00041452,120]
[394068975,1763243277598,-527.09537418,0.00041452,120]
[394068976,1763243277649,-500.0,0.00041452,120]
[394068977,1763243277704,-501.93593754,0.00041452,120]
[394068978,1763243277752,-446.18823637,0.00041452,120]
[394068979,1763243277797,-500.0,0.00041452,120]
[394068980,1763243277846,-500.0,0.00041452,120]
[394068981,1763243277893,-500.0,0.00041452,120]
[394068982,1763243277940,-564.86513503,0.00041452,120]
[394068983,1763243277985,-348.53254673,0.00041452,120]
[394068984,1763243278031,-500.0,0.00041452,120]
[394068985,1763243278078,-500.0,0.00041452,120]
[394068986,1763243278126,-500.0,0.00041452,120]
[394068987,1763243278173,-500.0,0.00041452,120]
[394068988,1763243278219,-500.0,0.00041452,120]
[394068989,1763243278263,-500.0,0.00041452,120]
[394068990,1763243278310,-573.83855761,0.00041452,120]
[394068991,1763243278356,-457.31759191,0.00041452,120]
[394068992,1763243278399,-500.0,0.00041452,120]
[394068993,1763243278442,-500.0,0.00041452,120]
[394068994,1763243278486,-500.0,0.00041452,120]
[394068995,1763243278529,-302.52212553,0.00041452,120]
[394068996,1763243278572,-500.0,0.00041452,120]
[394068997,1763243278620,-500.0,0.00041452,120]
[394068998,1763243278673,-211.24178569,0.00041452,120]
[394068999,1763243278726,-217.10638186,0.00041452,120]
[394069000,1763243278781,-421.92684744,0.00041452,120]
[394069001,1763243278839,-207.15569643,0.00041452,120]
[394069002,1763243278900,-297.51122605,0.00041452,120]
[394069003,1763243278957,-500.0,0.00041452,120]
[394069004,1763243279016,-500.0,0.00041452,120]
[394069005,1763243279067,-500.0,0.00041452,120]
[394069006,1763243279119,-500.0,0.00041452,120]
[394069007,1763243279173,-500.0,0.00041452,120]
[394069008,1763243279221,-500.0,0.00041452,120]
[394069009,1763243279268,-500.0,0.00041452,120]
[394069010,1763243279318,-500.0,0.00041452,120]
[394069011,1763243279365,-165.7984671,0.00041452,120]
[394069012,1763243279413,-611.94746458,0.00041452,120]
[394069013,1763243279464,-500.0,0.00041452,120]
[394069014,1763243279510,-500.0,0.00041452,120]
[394069015,1763243279556,-348.21010411,0.00041452,120]
[394069016,1763243279604,-500.0,0.00041452,120]
[394069017,1763243279670,-500.0,0.00041452,120]
[394069018,1763243279721,-501.52961288,0.00041452,120]
[394069019,1763243279770,-500.0,0.00041452,120]
[394069020,1763243279820,-500.0,0.00041452,120]
[394069021,1763243279871,-500.0,0.00041452,120]
[394069022,1763243279928,-500.0,0.00041452,120]
[394069023,1763243279979,-500.0,0.00041452,120]
[394069024,1763243280027,-500.0,0.00041452,120]
[394069025,1763243280077,-500.0,0.00041452,120]
[394069026,1763243280133,-500.0,0.00041452,120]
[394069027,1763243280191,-548.21193677,0.00041452,120]
[394069028,1763243280251,-309.98099686,0.00041452,120]
[394069029,1763243280306,-500.0,0.00041452,120]
[394069030,1763243280360,-500.0,0.00041452,120]
[394069031,1763243280411,-500.0,0.00041452,120]
[394069032,1763243280465,-302.30353624,0.00041452,120]
[394069033,1763243280515,-474.88874127,0.00041452,120]
[394069034,1763243280568,-500.0,0.00041452,120]
[394069035,1763243280620,-500.0,0.00041452,120]
[394069036,1763243280677,-500.0,0.00041452,120]
[394069037,1763243280731,-500.0,0.00041452,120]
[394069038,1763243280781,-500.0,0.00041452,120]
[394069039,1763243280834,-500.0,0.00041452,120]
[394069040,1763243280898,-500.0,0.00041452,120]
[394069041,1763243280958,-336.68694045,0.00041452,120]
[394069042,1763243281020,-500.0,0.00041452,120]
[394069043,1763243281075,-500.0,0.00041452,120]
[394069044,1763243281124,-500.0,0.00041452,120]
[394069045,1763243281175,-500.0,0.00041452,120]
[394069046,1763243281222,-607.02894234,0.00041452,120]
[394069047,1763243281268,-451.3860998,0.00041452,120]
[394069048,1763243281316,-500.0,0.00041452,120]
[394069049,1763243281362,-500.0,0.00041452,120]
[394069050,1763243281409,-500.0,0.00041452,120]
[394069051,1763243281457,-500.0,0.00041452,120]
[394069052,1763243281504,-500.0,0.00041452,120]
[394069053,1763243281553,-354.83202945,0.00041452,120]
[394069054,1763243281603,-500.0,0.00041452,120]
[394069055,1763243281659,-587.73231581,0.00041452,120]
[394069056,1763243281713,-490.80681316,0.00041452,120]
[394069057,1763243281768,-161.456092,0.00041452,120]
[394069058,1763243281820,-500.0,0.00041452,120]
[394069059,1763243281869,-500.0,0.00041452,120]
[394069060,1763243281918,-383.98117956,0.00041452,120]
[394069061,1763243281967,-500.0,0.00041452,120]
[394069062,1763243282015,-500.0,0.00041452,120]
[394069063,1763243282069,-500.0,0.00041452,120]
[394069064,1763243282118,-616.10635657,0.00041452,120]
[394069065,1763243282169,-500.0,0.00041452,120]
[394069066,1763243282222,-484.1366793,0.00041452,120]
[394069067,1763243282271,-500.0,0.00041452,120]
[394069068,1763243282319,-500.0,0.00041452,120]
[394069069,1763243282367,-358.77706434,0.00041452,120]
[394069070,1763243282412,-500.0,0.00041452,120]
[394069071,1763243282457,-370.00745789,0.00041452,120]
[394069072,1763243282501,-500.0,0.00041452,120]
[394069073,1763243282765,-500.0,0.00041452,120]
[394069074,1763243282819,-500.0,0.00041452,120]
[394069075,1763243282870,-321.60488446,0.00041452,120]
[394069076,1763243282920,-500.0,0.00041452,120]
[394069077,1763243282970,-500.0,0.00041452,120]
[394069078,1763243283021,-611.18331618,0.00041452,120]
[394069079,1763243283075,-500.0,0.00041452,120]
[394069080,1763243283133,-500.0,0.00041452,120]
[394069081,1763243283192,-203.40839249,0.00041452,120]
[394069082,1763243283250,-231.75954855,0.00041452,120]
[394069083,1763243283305,-500.0,0.00041452,120]
[394069084,1763243283364,-500.0,0.00041452,120]
[394069085,1763243283423,-500.0,0.00041452,120]
[394069086,1763243283480,-500.0,0.00041452,120]
[394069087,1763243283532,-500.0,0.00041452,120]
[394069088,1763243283583,-500.0,0.00041452,120]
[394069089,1763243283641,-500.0,0.00041452,120]
[394069090,1763243283698,-207.83836193,0.00041452,120]
[394069091,1763243283754,-406.33124322,0.00041452,120]
[394069092,1763243283807,-500.0,0.00041452,120]
[394069093,1763243283858,-500.0,0.00041452,120]
[394069094,1763243283915,-500.0,0.00041452,120]
[394069095,1763243283966,-307.40331381,0.00041452,120]
[394069096,1763243284017,-636.88535377,0.00041452,120]
[394069097,1763243284066,-531.89039673,0.00041452,120]
[394069098,1763243284115,-409.48463212,0.00041452,120]
[394069099,1763243284164,-372.85869863,0.00041452,120]
[394069100,1763243284217,-500.0,0.00041452,120]
[394069101,1763243284268,-500.0,0.00041452,120]
[394069102,1763243284320,-500.0,0.00041452,120]
[394069103,1763243284371,-500.0,0.00041452,120]
[394069104,1763243284421,-500.0,0.00041452,120]
[394069105,1763243284474,-625.84665999,0.00041452,120]
[394069106,1763243284524,-500.0,0.00041452,120]
[394069107,1763243284573,-211.62170642,0.00041452,120]
[394069108,1763243284625,-500.0,0.00041452,120]
[394069109,1763243284678,-500.0,0.00041452,120]
[394069110,1763243284734,-500.0,0.00041452,120]
[394069111,1763243284794,-500.0,0.00041452,120]
[394069112,1763243284846,-500.0,0.00041452,120]
[394069113,1763243284912,-471.22812614,0.00041452,120]
[394069114,1763243284967,-207.22829389,0.00041452,120]
[394069115,1763243285019,-500.0,0.00041452,120]
[394069116,1763243285070,-500.0,0.00041452,120]
[394069117,1763243285120,-500.0,0.00041452,120]
[394069118,1763243285172,-174.76346373,0.00041452,120]
[394069119,1763243285223,-385.27031359,0.00041452,120]
[394069120,1763243285274,-500.0,0.00041452,120]
[394069121,1763243285326,-500.0,0.00041452,120]
[394069122,1763243285380,-500.0,0.00041452,120]
[394069123,1763243285431,-500.0,0.00041452,120]
[394069124,1763243285479,-500.0,0.00041452,120]
[394069125,1763243285525,-500.0,0.00041452,120]
[394069126,1763243285572,-500.0,0.00041452,120]
[394069127,1763243285620,-500.0,0.00041452,120]
[394069128,1763243285679,-500.0,0.00041452,120]
[394069129,1763243285738,-500.0,0.00041452,120]
[394069130,1763243285799,-399.11002801,0.00041452,120]
[394069131,1763243285858,-500.0,0.00041452,120]
[394069132,1763243285913,-409.10628197,0.00041452,120]
[394069133,1763243285963,-500.0,0.00041452,120]
[394069134,1763243286017,-332.93592237,0.00041452,120]
[394069135,1763243286066,-500.0,0.00041452,120]
[394069136,1763243286118,-257.7338416,0.00041452,120]
[394069137,1763243286177,-500.0,0.00041452,120]
[394069138,1763243286227,-500.0,0.00041452,120]
[394069139,1763243286274,-500.0,0.00041452,120]
[394069140,1763243286322,-500.0,0.00041452,120]
[394069141,1763243286370,-500.0,0.00041452,120]
[394069142,1763243286417,-500.0,0.00041452,120]
[394069143,1763243286463,-500.0,0.00041452,120]
[394069144,1763243286508,-500.0,0.00041452,120]